[Event "CZE Extraliga 2019-20"]
[Site "Czech Republic"]
[Date "2019.10.13"]
[Round "2.2"]
[White "Ponizil, Cyril"]
[Black "Pulpan, Jakub"]
[Result "1/2-1/2"]
[ECO "C65"]
[WhiteElo "2504"]
[BlackElo "2421"]
[Annotator "ChessBase"]
[PlyCount "91"]
[EventDate "2019.09.15"]
[EventType "team-tourn"]
[EventCountry "CZE"]
[SourceTitle "playchess.com"]
[Source "ChessBase"]
[SourceQuality "1"]
[WhiteTeam "ŠK Duras BVK"]
[BlackTeam "ŠK Dopravní podnik Praha"]
[TimeControl "40/5400+30:1800+30"]

1. e4 {[%emt 0:00:00]} e5 {[%emt 0:00:00]} 2. Nf3 {[%emt 0:00:00]} Nc6 {[%emt 0:00:14]} 3. Bb5 {[%emt 0:00:00]} Nf6 {[%emt 0:00:28]} 4. d3 {[%emt 0:00:00]} Bc5 {[%emt 0:00:27]} 5. O-O {[%emt 0:00:01]} Nd4 {[%emt 0:00:36]} 6. Nxd4 {[%emt 0:03:07]} Bxd4 {[%emt 0:00:11]} 7. Nd2 {[%emt 0:02:06]} c6 {[%emt 0:01:40]} 8. Ba4 {[%emt 0:00:23]} d6 {[%emt 0:02:15]} 9. c3 {[%emt 0:01:17]} Bb6 {[%emt 0:00:23]} 10. Bc2 {[%emt 0:00:33]} h6 {[%emt 0:02:34]} 11. Nc4 {[%emt 0:00:34]} Bc7 {[%emt 0:01:12]} 12. f4 {[%emt 0:02:29]} exf4 {[%emt 0:20:22]} 13. Bxf4 {[%emt 0:00:33]} O-O {[%emt 0:07:28]} 14. Ne3 {[%emt 0:03:45]} Re8 {[%emt 0:04:47]} 15. Qf3 {[%emt 0:03:05]} d5 {[%emt 0:12:40]} 16. Bxc7 {[%emt 0:00:08]} Qxc7 {[%emt 0:00:13]} 17. exd5 {[%emt 0:02:04]} cxd5 {[%emt 0:02:35]} 18. d4 {[%emt 0:00:07]} Be6 {[%emt 0:01:03]} 19. Rae1 {[%emt 0:00:48]} b5 {[%emt 0:01:38]} 20. Qd1 {[%emt 0:05:02]} Ne4 {[%emt 0:10:33]} 21. Bxe4 {[%emt 0:03:55]} dxe4 {[%emt 0:00:10]} 22. d5 {[%emt 0:00:25]} Bd7 {[%emt 0:00:55]} 23. d6 {[%emt 0:00:53]} Qb6 {[%emt 0:01:49]} 24. Rf2 {[%emt 0:07:11]} Be6 {[%emt 0:02:38]} 25. Nd5 {[%emt 0:00:33]} Bxd5 {[%emt 0:07:51]} 26. Qxd5 {[%emt 0:00:05]} Rad8 {[%emt 0:00:18]} 27. Qxf7+ {[%emt 0:03:00]} Kh8 {[%emt 0:00:27]} 28. Qc7 {[%emt 0:02:08]} Qxd6 {[%emt 0:12:33]} 29. Qxd6 {[%emt 0:03:00]} Rxd6 {[%emt 0:00:01]} 30. Rfe2 {[%emt 0:00:05]} e3 {[%emt 0:02:33]} 31. g3 {[%emt 0:02:40]} Kh7 {[%emt 0:03:55]} 32. Kg2 {[%emt 0:04:27]} a5 {[%emt 0:00:29]} 33. Rc1 {[%emt 0:05:34]} Rd5 {[%emt 0:00:52]} 34. Rf1 {[%emt 0:08:09]} Kg6 {[%emt 0:00:32]} 35. Rf4 {[%emt 0:06:44]} Rd1 {[%emt 0:00:13]} 36. a4 {[%emt 0:01:42]} bxa4 {[%emt 0:00:26]} 37. Rxa4 {[%emt 0:00:09]} Re5 {[%emt 0:00:17]} 38. Rf4 {[%emt 0:04:47]} Rb1 {[%emt 0:00:58]} 39. Ra4 {[%emt 0:00:58]} Rd1 {[%emt 0:00:07]} 40. h4 {[%emt 0:01:19]} h5 {[%emt 0:00:34]} 41. b4 {[%emt 0:38:37]} axb4 {[%emt 0:30:52]} 42. Rxb4 {[%emt 0:00:09]} Rc1 {[%emt 0:00:00]} 43. Rc4 {[%emt 0:00:00]} Kf5 {[%emt 0:00:00]} 44. Rf4+ {[%emt 0:00:00]} Kg6 {[%emt 0:00:00]} 45. Rc4 {[%emt 0:00:00]} Kf5 {[%emt 0:00:00]} 46. Rf4+ {[%emt 0:00:00]} 1/2-1/2

[Event "CZE Extraliga 2019-20"]
[Site "Czech Republic"]
[Date "2019.10.13"]
[Round "2.2"]
[White "Kantans, Toms"]
[Black "Zhigalko, Andrey"]
[Result "1-0"]
[ECO "B99"]
[WhiteElo "2490"]
[BlackElo "2543"]
[Annotator "ChessBase"]
[PlyCount "85"]
[EventDate "2019.09.15"]
[EventType "team-tourn"]
[EventCountry "CZE"]
[SourceTitle "playchess.com"]
[Source "ChessBase"]
[SourceQuality "1"]
[WhiteTeam " ŠK Zikuda Turnov"]
[BlackTeam "BŠŠ Frýdek-Místek"]
[TimeControl "40/5400+30:1800+30"]

1. e4 {[%emt 0:00:00]} c5 {[%emt 0:00:00]} 2. Nf3 {[%emt 0:00:00]} d6 {[%emt 0:00:00]} 3. d4 {[%emt 0:00:04]} cxd4 {[%emt 0:00:00]} 4. Nxd4 {[%emt 0:00:07]} Nf6 {[%emt 0:00:00]} 5. Nc3 {[%emt 0:00:07]} a6 {[%emt 0:00:00]} 6. Bg5 {[%emt 0:00:32]} e6 {[%emt 0:00:00]} 7. f4 {[%emt 0:00:06]} Be7 {[%emt 0:00:05]} 8. Qf3 {[%emt 0:01:13]} Qc7 {[%emt 0:00:11]} 9. O-O-O {[%emt 0:00:38]} Nbd7 {[%emt 0:00:04]} 10. g4 {[%emt 0:02:15]} b5 {[%emt 0:00:06]} 11. Bxf6 {[%emt 0:02:05]} Nxf6 {[%emt 0:00:06]} 12. g5 {[%emt 0:00:05]} Nd7 {[%emt 0:00:05]} 13. f5 {[%emt 0:08:23]} O-O {[%emt 0:00:29]} 14. Rg1 {[%emt 0:04:40]} b4 {[%emt 0:00:29]} 15. Nce2 {[%emt 0:00:24]} e5 {[%emt 0:00:37]} 16. f6 {[%emt 0:08:59]} exd4 {[%emt 0:00:08]} 17. fxe7 {[%emt 0:00:24]} Re8 {[%emt 0:00:05]} 18. Nxd4 {[%emt 0:03:00]} Ne5 {[%emt 0:00:06]} 19. Qb3 {[%emt 0:01:26]} a5 {[%emt 0:09:59]} 20. Rg3 {[%emt 0:03:56]} Rxe7 {[%emt 0:33:41]} 21. Nb5 {[%emt 0:11:23]} Qc5 {[%emt 0:17:14]} 22. Qd5 {[%emt 0:06:00]} Qxd5 {[%emt 0:02:36]} 23. exd5 {[%emt 0:00:47]} Bg4 {[%emt 0:07:00]} 24. Rd4 {[%emt 0:04:58]} Rd8 {[%emt 0:03:06]} 25. c3 {[%emt 0:04:35]} Bh5 {[%emt 0:05:18]} 26. Re3 {[%emt 0:05:24]} bxc3 {[%emt 0:03:28]} 27. Nxc3 {[%emt 0:02:23]} Rc7 {[%emt 0:03:46]} 28. Rh4 {[%emt 0:03:10]} Bg6 {[%emt 0:00:32]} 29. b3 {[%emt 0:02:48]} Rf8 {[%emt 0:08:38]} 30. Rf4 {[%emt 0:03:43]} Nd3+ {[%emt 0:04:01]} 31. Bxd3 {[%emt 0:00:06]} Rxc3+ {[%emt 0:00:05]} 32. Kd2 {[%emt 0:00:04]} Rc5 {[%emt 0:00:52]} 33. Bc4 {[%emt 0:00:05]} Rfc8 {[%emt 0:01:44]} 34. Re7 {[%emt 0:02:26]} R5c7 {[%emt 0:00:33]} 35. Rxc7 {[%emt 0:00:05]} Rxc7 {[%emt 0:00:01]} 36. Kc3 {[%emt 0:00:36]} Kf8 {[%emt 0:00:39]} 37. b4 {[%emt 0:00:07]} axb4+ {[%emt 0:00:41]} 38. Kxb4 {[%emt 0:00:02]} Ke7 {[%emt 0:00:53]} 39. a4 {[%emt 0:01:30]} Kd8 {[%emt 0:00:53]} 40. Kb5 {[%emt 0:02:24]} Ra7 {[%emt 0:01:05]} 41. a5 {[%emt 0:31:15]} Kc7 {[%emt 0:30:40]} 42. a6 {[%emt 0:01:05]} Ra8 {[%emt 0:00:00]} 43. Ka5 {[%emt 0:00:00]} 1-0

[Event "CZE Extraliga 2019-20"]
[Site "Czech Republic"]
[Date "2019.10.13"]
[Round "2.3"]
[White "Markos, Jan"]
[Black "Shevchenko, Kirill"]
[Result "1/2-1/2"]
[ECO "E18"]
[WhiteElo "2572"]
[BlackElo "2541"]
[Annotator "ChessBase"]
[PlyCount "60"]
[EventDate "2019.09.15"]
[EventType "team-tourn"]
[EventCountry "CZE"]
[SourceTitle "playchess.com"]
[Source "ChessBase"]
[SourceQuality "1"]
[WhiteTeam "Slavia Kromerí\[#\]"]
[BlackTeam "GASCO Pardubice"]
[TimeControl "40/5400+30:1800+30"]

1. d4 {[%emt 0:00:00]} Nf6 {[%emt 0:00:00]} 2. c4 {[%emt 0:00:00]} e6 {[%emt 0:00:00]} 3. Nf3 {[%emt 0:00:00]} b6 {[%emt 0:00:00]} 4. g3 {[%emt 0:00:00]} Bb7 {[%emt 0:00:00]} 5. Bg2 {[%emt 0:00:00]} Be7 {[%emt 0:00:00]} 6. O-O {[%emt 0:00:11]} O-O {[%emt 0:00:00]} 7. Nc3 {[%emt 0:00:05]} Ne4 {[%emt 0:00:02]} 8. Bd2 {[%emt 0:00:05]} Bf6 {[%emt 0:00:05]} 9. Ne5 {[%emt 0:01:50]} Nxc3 {[%emt 0:00:26]} 10. Bxc3 {[%emt 0:00:05]} Bxg2 {[%emt 0:00:07]} 11. Kxg2 {[%emt 0:00:05]} c5 {[%emt 0:01:32]} 12. dxc5 {[%emt 0:05:34]} bxc5 {[%emt 0:00:10]} 13. Qd6 {[%emt 0:10:06]} Be7 {[%emt 0:14:48]} 14. Qd3 {[%emt 0:00:30]} Qc7 {[%emt 0:00:27]} 15. Qf3 {[%emt 0:09:56]} f6 {[%emt 0:03:02]} 16. Qxa8 {[%emt 0:05:13]} Nc6 {[%emt 0:00:27]} 17. Qxf8+ {[%emt 0:00:17]} Bxf8 {[%emt 0:02:59]} 18. Nxc6 {[%emt 0:03:09]} Qxc6+ {[%emt 0:01:04]} 19. f3 {[%emt 0:00:12]} Qa6 {[%emt 0:13:27]} 20. b3 {[%emt 0:06:58]} d5 {[%emt 0:00:20]} 21. Rfc1 {[%emt 0:00:40]} dxc4 {[%emt 0:14:44]} 22. bxc4 {[%emt 0:00:07]} Qxc4 {[%emt 0:00:07]} 23. Rc2 {[%emt 0:00:16]} Qa6 {[%emt 0:11:50]} 24. Be1 {[%emt 0:07:49]} e5 {[%emt 0:11:08]} 25. a4 {[%emt 0:05:43]} c4 {[%emt 0:05:15]} 26. a5 {[%emt 0:06:04]} Qb5 {[%emt 0:02:09]} 27. a6 {[%emt 0:16:09]} Bc5 {[%emt 0:02:48]} 28. Rac1 {[%emt 0:07:40]} Ba3 {[%emt 0:01:50]} 29. Ra1 {[%emt 0:00:11]} Bc5 {[%emt 0:00:34]} 30. Rac1 {[%emt 0:00:30]} Ba3 1/2-1/2

[Event "CZE Extraliga 2019-20"]
[Site "Czech Republic"]
[Date "2019.10.13"]
[Round "2.3"]
[White "Fedorov, Alexei"]
[Black "Cyborowski, Lukasz"]
[Result "1/2-1/2"]
[ECO "C24"]
[WhiteElo "2551"]
[BlackElo "2509"]
[Annotator "ChessBase"]
[PlyCount "33"]
[EventDate "2019.09.15"]
[EventType "team-tourn"]
[EventCountry "CZE"]
[SourceTitle "playchess.com"]
[Source "ChessBase"]
[SourceQuality "1"]
[WhiteTeam "BŠŠ Frýdek-Místek "]
[BlackTeam "ŠK Zikuda Turnov"]
[TimeControl "40/5400+30:1800+30"]

1. e4 {[%emt 0:00:00]} e5 {[%emt 0:00:00]} 2. Bc4 {[%emt 0:00:39]} Nf6 {[%emt 0:00:51]} 3. d3 {[%emt 0:00:08]} c6 {[%emt 0:02:00]} 4. Nf3 {[%emt 0:00:16]} d6 {[%emt 0:01:10]} 5. O-O {[%emt 0:00:30]} Be7 {[%emt 0:00:22]} 6. c3 {[%emt 0:01:56]} O-O {[%emt 0:01:26]} 7. Bb3 {[%emt 0:00:27]} Re8 {[%emt 0:06:52]} 8. Nbd2 {[%emt 0:00:55]} Bf8 {[%emt 0:00:45]} 9. Re1 {[%emt 0:02:34]} Be6 {[%emt 0:01:26]} 10. Bc2 {[%emt 0:01:04]} Nbd7 {[%emt 0:01:44]} 11. Nf1 {[%emt 0:05:16]} h6 {[%emt 0:08:27]} 12. Ng3 {[%emt 0:20:06]} d5 {[%emt 0:08:27]} 13. d4 {[%emt 0:07:25]} dxe4 {[%emt 0:06:30]} 14. Nxe5 {[%emt 0:01:34]} Nxe5 {[%emt 0:03:39]} 15. dxe5 {[%emt 0:00:21]} Qxd1 {[%emt 0:00:21]} 16. Rxd1 {[%emt 0:03:50]} Ng4 {[%emt 0:11:56]} 17. Nxe4 {[%emt 0:01:32]} 1/2-1/2

[Event "CZE Extraliga 2019-20"]
[Site "Czech Republic"]
[Date "2019.10.13"]
[Round "2.3"]
[White "Bernasek, Jan"]
[Black "Heberla, Bartlomiej"]
[Result "0-1"]
[ECO "D36"]
[WhiteElo "2490"]
[BlackElo "2544"]
[Annotator "ChessBase"]
[PlyCount "90"]
[EventDate "2019.09.15"]
[EventType "team-tourn"]
[EventCountry "CZE"]
[SourceTitle "playchess.com"]
[Source "ChessBase"]
[SourceQuality "1"]
[WhiteTeam "Siesta Solution Unichess"]
[BlackTeam "Moravská Slavia Brno"]
[TimeControl "40/5400+30:1800+30"]

1. d4 {[%emt 0:01:24]} e6 {[%emt 0:00:09]} 2. c4 {[%emt 0:00:20]} d5 {[%emt 0:00:07]} 3. Nc3 {[%emt 0:00:44]} Nf6 {[%emt 0:00:11]} 4. cxd5 {[%emt 0:00:32]} exd5 {[%emt 0:00:03]} 5. Bg5 {[%emt 0:00:11]} c6 {[%emt 0:00:04]} 6. Qc2 {[%emt 0:04:14]} h6 {[%emt 0:00:15]} 7. Bh4 {[%emt 0:00:26]} g6 {[%emt 0:00:05]} 8. e3 {[%emt 0:04:19]} Bf5 {[%emt 0:00:58]} 9. Bd3 {[%emt 0:01:24]} Bxd3 {[%emt 0:00:08]} 10. Qxd3 {[%emt 0:00:06]} Nbd7 {[%emt 0:00:17]} 11. Nf3 {[%emt 0:00:38]} Be7 {[%emt 0:04:25]} 12. O-O {[%emt 0:04:18]} O-O {[%emt 0:02:01]} 13. h3 {[%emt 0:06:32]} Nh5 {[%emt 0:04:33]} 14. Bxe7 {[%emt 0:03:04]} Qxe7 {[%emt 0:00:03]} 15. Nd2 {[%emt 0:07:53]} f5 {[%emt 0:16:42]} 16. g4 {[%emt 0:08:52]} Ng7 {[%emt 0:04:35]} 17. Ne2 {[%emt 0:06:19]} Rae8 {[%emt 0:24:51]} 18. Nf4 {[%emt 0:03:39]} Qd6 {[%emt 0:01:47]} 19. Rae1 {[%emt 0:02:15]} g5 {[%emt 0:04:07]} 20. Ng2 {[%emt 0:00:34]} fxg4 {[%emt 0:12:11]} 21. hxg4 {[%emt 0:00:17]} Nf6 {[%emt 0:00:29]} 22. f3 {[%emt 0:15:46]} Qg3 {[%emt 0:00:05]} 23. Re2 {[%emt 0:06:58]} h5 {[%emt 0:00:08]} 24. gxh5 {[%emt 0:11:59]} Nfxh5 {[%emt 0:00:29]} 25. Rff2 {[%emt 0:00:10]} Qh3 {[%emt 0:04:36]} 26. Nf1 {[%emt 0:00:16]} Rxf3 {[%emt 0:04:32]} 27. Qg6 {[%emt 0:03:03]} Rf5 {[%emt 0:07:00]} 28. e4 {[%emt 0:01:39]} dxe4 {[%emt 0:01:37]} 29. Re3 {[%emt 0:01:04]} Qg4 {[%emt 0:02:00]} 30. Nh2 {[%emt 0:02:32]} Qd1+ {[%emt 0:00:18]} 31. Re1 {[%emt 0:00:27]} Qxd4 {[%emt 0:00:26]} 32. Ng4 {[%emt 0:01:45]} Rxf2 {[%emt 0:00:11]} 33. Nxf2 {[%emt 0:00:13]} Rf8 {[%emt 0:01:09]} 34. Re3 {[%emt 0:00:28]} Qxb2 {[%emt 0:03:31]} 35. Nh3 {[%emt 0:00:03]} Qa1+ {[%emt 0:00:48]} 36. Re1 {[%emt 0:00:05]} Qd4+ {[%emt 0:00:27]} 37. Kh1 {[%emt 0:00:04]} Qf6 {[%emt 0:00:33]} 38. Qxf6 {[%emt 0:00:16]} Rxf6 {[%emt 0:01:20]} 39. Nxg5 {[%emt 0:00:09]} Ng3+ {[%emt 0:01:01]} 40. Kg1 {[%emt 0:00:15]} Ne6 {[%emt 0:01:08]} 41. Nxe4 {[%emt 0:33:50]} Nxe4 {[%emt 0:30:14]} 42. Rxe4 {[%emt 0:00:04]} Kf7 {[%emt 0:00:21]} 43. Ne3 {[%emt 0:00:52]} Ke7 {[%emt 0:00:00]} 44. Nc4 {[%emt 0:00:00]} Kd7 {[%emt 0:00:00]} 45. Rh4 {[%emt 0:00:00]} Nf8 {[%emt 0:00:00]} 0-1

[Event "CZE Extraliga 2019-20"]
[Site "Czech Republic"]
[Date "2019.10.13"]
[Round "2.3"]
[White "Carlsson, Pontus"]
[Black "Blahynka, Martin"]
[Result "1-0"]
[ECO "C45"]
[WhiteElo "2447"]
[BlackElo "2423"]
[Annotator "NA"]
[PlyCount "99"]
[EventDate "2019.09.15"]
[EventType "team-tourn"]
[EventCountry "CZE"]
[SourceTitle "playchess.com"]
[Source "ChessBase"]
[SourceQuality "1"]
[WhiteTeam "ŠK Dopravní podnik Praha"]
[BlackTeam "ŠK Duras BVK"]
[TimeControl "40/5400+30:1800+30"]

1. e4 {[%emt 0:00:00]} e5 {[%emt 0:00:00]} 2. Nf3 {[%emt 0:00:00]} Nc6 {[%emt 0:00:00]} 3. d4 {[%emt 0:00:20]} exd4 {[%emt 0:00:00]} 4. Nxd4 {[%emt 0:00:04]} Bc5 {[%emt 0:00:28]} 5. Nb3 {[%emt 0:00:24]} Bb6 {[%emt 0:00:10]} 6. Qe2 {[%emt 0:00:09]} d6 {[%emt 0:01:03]} 7. Be3 {[%emt 0:00:06]} Nf6 {[%emt 0:00:30]} 8. Nc3 {[%emt 0:00:03]} Qe7 {[%emt 0:04:06]} 9. O-O-O {[%emt 0:00:20]} Be6 {[%emt 0:02:35]} 10. f3 {[%emt 0:07:43]} Bxb3 {[%emt 0:28:28]} 11. cxb3 {[%emt 0:13:41]} O-O-O {[%emt 0:05:17]} 12. Bxb6 {[%emt 0:11:10]} axb6 {[%emt 0:00:26]} 13. Qd2 {[%emt 0:05:11]} h5 {[%emt 0:10:52]} 14. h4 {[%emt 0:09:29]} Ne5 {[%emt 0:03:13]} 15. Qd4 {[%emt 0:02:30]} Kb8 {[%emt 0:20:16]} 16. Be2 {[%emt 0:06:02]} Ned7 {[%emt 0:10:32]} 17. b4 {[%emt 0:10:01]} Qe5 {[%emt 0:01:25]} 18. Qd2 {[%emt 0:05:07]} Rhe8 {[%emt 0:04:03]} 19. Bc4 {[%emt 0:04:26]} Qe7 {[%emt 0:00:24]} 20. Bb3 {[%emt 0:03:28]} Ne5 {[%emt 0:00:27]} 21. b5 {[%emt 0:09:15]} Rd7 {[%emt 0:01:35]} 22. Qe3 {[%emt 0:03:09]} Qd8 {[%emt 0:00:20]} 23. Kb1 {[%emt 0:01:26]} Ng6 {[%emt 0:01:18]} 24. Qd2 {[%emt 0:01:56]} Re5 {[%emt 0:01:11]} 25. Qf2 {[%emt 0:01:19]} Rc5 {[%emt 0:01:32]} 26. a4 {[%emt 0:01:08]} Nf4 {[%emt 0:01:35]} 27. Qe3 {[%emt 0:02:51]} Ng6 {[%emt 0:00:42]} 28. Rd4 {[%emt 0:00:19]} Re5 {[%emt 0:00:32]} 29. Qf2 {[%emt 0:01:03]} Ne7 {[%emt 0:00:47]} 30. Bxf7 {[%emt 0:01:24]} Nf5 {[%emt 0:00:34]} 31. exf5 {[%emt 0:00:07]} Rxf7 {[%emt 0:00:05]} 32. g4 {[%emt 0:00:06]} Rfe7 {[%emt 0:00:36]} 33. Rc1 {[%emt 0:00:33]} Qg8 {[%emt 0:00:33]} 34. Qc2 {[%emt 0:00:28]} Qh7 {[%emt 0:00:51]} 35. g5 {[%emt 0:00:27]} Ne8 {[%emt 0:00:22]} 36. Nd5 {[%emt 0:00:22]} Rd7 {[%emt 0:00:39]} 37. Nxb6 {[%emt 0:01:20]} Rd8 {[%emt 0:00:29]} 38. Nc4 {[%emt 0:00:48]} Rc5 {[%emt 0:00:33]} 39. b4 {[%emt 0:00:09]} Rxf5 {[%emt 0:00:09]} 40. Ne3 {[%emt 0:00:20]} g6 {[%emt 0:00:25]} 41. Nxf5 {[%emt 0:30:23]} gxf5 {[%emt 0:30:04]} 42. Rd5 {[%emt 0:00:00]} Qe7 {[%emt 0:00:00]} 43. Qxf5 {[%emt 0:00:00]} Qe3 {[%emt 0:00:00]} 44. Rd3 {[%emt 0:00:00]} Qf2 {[%emt 0:00:00]} 45. Qf4 {[%emt 0:00:00]} d5 {[%emt 0:00:00]} 46. a5 {[%emt 0:00:00]} Qe2 {[%emt 0:00:00]} 47. Qe3 {[%emt 0:00:00]} Qh2 {[%emt 0:00:00]} 48. Qe7 {[%emt 0:00:00]} Rc8 {[%emt 0:00:00]} 49. Rxd5 {[%emt 0:00:00]} Qxh4 {[%emt 0:00:00]} 50. Rd8 1-0

[Event "CZE Extraliga 2019-20"]
[Site "Czech Republic"]
[Date "2019.10.13"]
[Round "2.4"]
[White "Polak, Tomas"]
[Black "Jurcik, Marian"]
[Result "1-0"]
[ECO "A41"]
[WhiteElo "2527"]
[BlackElo "2486"]
[Annotator "ChessBase"]
[PlyCount "119"]
[EventDate "2019.09.15"]
[EventType "team-tourn"]
[EventCountry "CZE"]
[SourceTitle "playchess.com"]
[Source "ChessBase"]
[SourceQuality "1"]
[WhiteTeam "Moravská Slavia Brno"]
[BlackTeam "Siesta Solution Unichess"]
[TimeControl "40/5400+30:1800+30"]

1. d4 {[%emt 0:00:00]} d6 {[%emt 0:00:57]} 2. Nf3 {[%emt 0:02:06]} g6 {[%emt 0:00:27]} 3. c4 {[%emt 0:02:23]} Bg7 {[%emt 0:00:48]} 4. Nc3 {[%emt 0:00:12]} Bg4 {[%emt 0:00:39]} 5. e3 {[%emt 0:02:56]} Nf6 {[%emt 0:00:52]} 6. h3 {[%emt 0:02:36]} Bxf3 {[%emt 0:00:49]} 7. Qxf3 {[%emt 0:00:05]} Nc6 {[%emt 0:00:13]} 8. g4 {[%emt 0:07:15]} Nd7 {[%emt 0:06:47]} 9. Bd2 {[%emt 0:07:50]} e5 {[%emt 0:03:09]} 10. d5 {[%emt 0:02:42]} Ne7 {[%emt 0:07:23]} 11. Ne4 {[%emt 0:11:21]} f5 {[%emt 0:43:44]} 12. gxf5 {[%emt 0:03:50]} Nxf5 {[%emt 0:00:29]} 13. h4 {[%emt 0:09:19]} Nc5 {[%emt 0:04:57]} 14. h5 {[%emt 0:03:37]} Nxe4 {[%emt 0:00:54]} 15. Qxe4 {[%emt 0:01:04]} Qf6 {[%emt 0:02:23]} 16. Bh3 {[%emt 0:06:26]} O-O-O {[%emt 0:01:48]} 17. O-O-O {[%emt 0:02:35]} Kb8 {[%emt 0:00:12]} 18. Rdg1 {[%emt 0:02:15]} Nh4 {[%emt 0:02:55]} 19. Bg4 {[%emt 0:06:02]} g5 {[%emt 0:01:23]} 20. f3 {[%emt 0:01:04]} Rdf8 {[%emt 0:05:25]} 21. Rh3 {[%emt 0:04:42]} h6 {[%emt 0:01:44]} 22. Kd1 {[%emt 0:03:22]} Nf5 {[%emt 0:03:31]} 23. Ke2 {[%emt 0:00:31]} Ne7 {[%emt 0:00:45]} 24. Rc1 {[%emt 0:01:59]} Ng8 {[%emt 0:01:03]} 25. Be6 {[%emt 0:03:20]} Qe7 {[%emt 0:00:43]} 26. c5 {[%emt 0:03:41]} dxc5 {[%emt 0:02:31]} 27. b4 {[%emt 0:00:08]} c4 {[%emt 0:04:35]} 28. Qxc4 {[%emt 0:05:30]} Nf6 {[%emt 0:00:03]} 29. b5 {[%emt 0:00:15]} Ne8 {[%emt 0:00:04]} 30. Ba5 {[%emt 0:01:00]} e4 {[%emt 0:03:11]} 31. Qxe4 {[%emt 0:01:13]} Qa3 {[%emt 0:00:32]} 32. Bd2 {[%emt 0:00:52]} Nd6 {[%emt 0:00:33]} 33. Qb4 {[%emt 0:01:19]} Qxa2 {[%emt 0:00:28]} 34. Qc5 {[%emt 0:01:02]} Be5 {[%emt 0:00:28]} 35. Qxc7+ {[%emt 0:02:11]} Ka8 {[%emt 0:00:01]} 36. Qc2 {[%emt 0:00:34]} Qxc2 {[%emt 0:00:59]} 37. Rxc2 {[%emt 0:00:03]} Nxb5 {[%emt 0:00:09]} 38. Rh1 {[%emt 0:00:30]} Nc7 {[%emt 0:00:52]} 39. Rhc1 {[%emt 0:00:58]} Nxe6 {[%emt 0:00:28]} 40. dxe6 {[%emt 0:00:04]} Re8 {[%emt 0:00:34]} 41. f4 {[%emt 0:00:55]} gxf4 {[%emt 0:01:46]} 42. exf4 {[%emt 0:00:34]} Rxe6 {[%emt 0:01:19]} 43. fxe5 {[%emt 0:03:00]} Rxe5+ {[%emt 0:00:28]} 44. Kf3 {[%emt 0:07:21]} b6 {[%emt 0:01:24]} 45. Rh1 {[%emt 0:02:32]} Rf8+ {[%emt 0:15:26]} 46. Bf4 {[%emt 0:02:25]} Kb7 {[%emt 0:00:04]} 47. Rh4 {[%emt 0:02:30]} a5 {[%emt 0:02:50]} 48. Kg3 {[%emt 0:02:17]} Rb5 {[%emt 0:00:51]} 49. Rc7+ {[%emt 0:03:36]} Ka6 {[%emt 0:00:15]} 50. Bxh6 {[%emt 0:02:57]} Rh8 {[%emt 0:04:47]} 51. Rc6 {[%emt 0:00:34]} Kb7 {[%emt 0:03:46]} 52. Rg6 {[%emt 0:01:32]} a4 {[%emt 0:00:03]} 53. Rxa4 {[%emt 0:03:02]} Rxh5 {[%emt 0:00:10]} 54. Bf4 {[%emt 0:00:50]} Rc8 {[%emt 0:03:02]} 55. Rg7+ {[%emt 0:01:59]} Kc6 {[%emt 0:00:11]} 56. Rd4 {[%emt 0:00:25]} Kb5 {[%emt 0:00:49]} 57. Rd3 {[%emt 0:01:11]} Rc6 {[%emt 0:00:58]} 58. Rb3+ {[%emt 0:00:46]} Ka6 {[%emt 0:00:47]} 59. Bb8 {[%emt 0:00:35]} b5 {[%emt 0:00:35]} 60. Ra3+ {[%emt 0:00:11]} 1-0

[Event "CZE Extraliga 2019-20"]
[Site "Czech Republic"]
[Date "2019.10.13"]
[Round "2.4"]
[White "Votava, Jan"]
[Black "Malinovsky, Karel"]
[Result "1/2-1/2"]
[ECO "E05"]
[WhiteElo "2521"]
[BlackElo "2478"]
[Annotator "ChessBase"]
[PlyCount "37"]
[EventDate "2019.09.15"]
[EventType "team-tourn"]
[EventCountry "CZE"]
[SourceTitle "playchess.com"]
[Source "ChessBase"]
[SourceQuality "1"]
[WhiteTeam "GASCO Pardubice"]
[BlackTeam "Slavia Kromerí\[#\]"]
[TimeControl "40/5400+30:1800+30"]

1. d4 {[%emt 0:00:00]} d5 {[%emt 0:00:00]} 2. c4 {[%emt 0:00:00]} e6 {[%emt 0:00:00]} 3. Nf3 {[%emt 0:00:24]} Nf6 {[%emt 0:00:00]} 4. g3 {[%emt 0:00:49]} Be7 {[%emt 0:00:11]} 5. Bg2 {[%emt 0:00:05]} O-O {[%emt 0:00:07]} 6. O-O {[%emt 0:00:40]} dxc4 {[%emt 0:00:31]} 7. Qc2 {[%emt 0:00:54]} a6 {[%emt 0:01:34]} 8. Qxc4 {[%emt 0:05:00]} b5 {[%emt 0:00:10]} 9. Qc2 {[%emt 0:01:32]} Bb7 {[%emt 0:00:07]} 10. Bd2 {[%emt 0:05:13]} Be4 {[%emt 0:01:42]} 11. Qc1 {[%emt 0:02:27]} c6 {[%emt 0:01:59]} 12. Be3 {[%emt 0:10:47]} Nbd7 {[%emt 0:05:44]} 13. Nc3 {[%emt 0:02:13]} Bg6 {[%emt 0:03:26]} 14. Ne5 {[%emt 0:17:15]} Nxe5 {[%emt 0:04:46]} 15. dxe5 {[%emt 0:00:01]} Nd5 {[%emt 0:00:16]} 16. Nxd5 {[%emt 0:05:19]} cxd5 {[%emt 0:03:00]} 17. Qd2 {[%emt 0:05:52]} Qc7 {[%emt 0:17:27]} 18. f4 {[%emt 0:04:59]} Qc2 {[%emt 0:07:00]} 19. Rfc1 {[%emt 0:14:00]} 1/2-1/2